Cogmind - Beta 16.1 @@@ ROGUE MODE // 2026.02.14 @ 12:36:08 Player: Not_Jesus8 Result: Self-destructed Performance ------------- Evolutions (1) 500 Regions Visited (2) 400 Robots Destroyed (10) 50 Value Destroyed (211) 211 Prototype IDs (0) 0 Alien Tech Used (0) 0 Bonus (0) 0 TOTAL SCORE: 1161 Bonus ------- None Cogmind --------- Core Integrity 400/400 Matter 280/300 Energy 160/160 System Corruption 0% Temperature Cool (0) Movement Walking (120) Location -9/Materials Parts ------- > --- POWER (1) -------- Light Nuclear Core > --- PROPULSION (2) --- Aluminum Leg Aluminum Leg > --- UTILITY (4) ------ Medium Storage Unit Seismic Detector > --- WEAPON (2) ------- Particle Cannon > --- INVENTORY (10) --- Aluminum Leg Aluminum Leg Aluminum Leg Improved Heat Sink Large Storage Unit Transport Network Coupler Medium Laser Medium Laser Datajack Peak State ------------ > --- POWER ------------ Light Nuclear Core > --- PROPULSION ------- Aluminum Leg Aluminum Leg > --- UTILITY ---------- Small Storage Unit Seismic Detector > --- WEAPON ----------- Medium Laser Particle Cannon > --- INVENTORY -------- Aluminum Leg Aluminum Leg Aluminum Leg Improved Heat Sink Medium Storage Unit Large Storage Unit Transport Network Coupler Datajack [Rating: 11] Favorites ----------- Power Light Nuclear Core Engine Ion Engine Power Core Light Nuclear Core Propulsion Aluminum Leg Leg Aluminum Leg Utility Seismic Detector Device Seismic Detector Storage Small Storage Unit Weapon Medium Laser Energy Gun Medium Laser Energy Cannon Particle Cannon Build | -11 -10 -9 ------- Run | Yrd Mat Mat Slots Evolved 2 | . . 2 Power . | . . . Propulsion . | . . . Utility 2 | . . 2 Weapon . | . . . Parts Attached 10 | 7 1 2 Power 2 | 1 1 . Engine 1 | 1 . . Core 1 | . 1 . Reactor . | . . . Propulsion 2 | 2 . . Treads . | . . . Leg 2 | 2 . . Wheel . | . . . Hover . | . . . Flight . | . . . Utility 3 | 2 . 1 Device 1 | 1 . . Storage 2 | 1 . 1 Processor . | . . . Hackware . | . . . Protection . | . . . Artifact . | . . . Weapon 3 | 2 . 1 Energy Gun 2 | 2 . . Energy Cannon 1 | . . 1 Ballistic Gun . | . . . Ballistic Cannon . | . . . Launcher . | . . . Special Weapon . | . . . Impact Weapon . | . . . Slashing Weapon . | . . . Piercing Weapon . | . . . Special Melee Weapon . | . . . Unidentified Prototypes . | . . . Parts Lost . | . . . Power . | . . . Propulsion . | . . . Utility . | . . . Weapon . | . . . Highest Loss Streak . | . . . To Critical Strikes . | . . . Average Backups 5 | . 6 8 Power . | . . . Propulsion 2 | . 2 3 Utility 2 | . 2 3 Weapon . | . . 1 Tool/Special . | . . . Unused Backups 7 | . . 7 Power . | . . . Propulsion 3 | . . 3 Utility 3 | . . 3 Weapon . | . . . Tool/Special 1 | . . 1 Average Slot Usage (%) 97 | . 100 71 Engine 5 | . 5 . Core 8 | . 8 11 Leg 27 | . 28 22 Device 13 | . 14 11 Storage 13 | . 14 12 Energy Gun 26 | . 28 7 Peak Build Rating 11 | 7 10 11 Average Rating 8 | 5 8 10 On Entrance 5 | . 7 10 Avg Prop Armor Cover (%) . | . . . Naked Turns . | . . . Heaviest Build 22 | 15 15 22 Greatest Support 20 | 20 20 20 Greatest Overweight (x) 2 | 2 . 1 Average Overweight (x) . | . . . Largest Inventory Capacity 10 | 8 8 10 Average Capacity 8 | 7 8 9 Most Carried 9 | 1 8 9 Average Carried 6 | . 6 8 Final Capacity 10 | 8 8 10 Final Carried 9 | . 8 9 Class Distribution -------------------- 100% | Mutant Dominant Class ---------------- Mutant | -10/Materials Mutant | -9/Materials Resources | -11 -10 -9 ----------- Run | Yrd Mat Mat Matter Collected 280 | 144 136 . Remotely . | . . . Salvage Created 324 | 15 309 . Parts 20 | 3 17 . Haulers Intercepted 1 | . 1 . Recyclers Shooed . | . . . Parts Field Recycled . | . . . Retrieved Matter . | . . . Parts Self-Destructed . | . . . Prevented . | . . . Parts Restored . | . . . Kills | -11 -10 -9 ------- Run | Yrd Mat Mat Combat Hostiles Destroyed 4 | . 4 . Guns 4 | . 4 . Classes Destroyed 6 | 1 5 . Builder 1 | . 1 . Tunneler 1 | 1 . . Hauler 1 | . 1 . Operator 1 | . 1 . Watcher 2 | . 2 . Grunt 4 | . 4 . Best Kill Streak 3 | 1 3 . Combat Bots Only 1 | . 1 . Max Kills in Single Turn 1 | 1 1 . Gunslinging . | . . . Exploded . | . . . Melee . | . . . Uniques/NPCs Destroyed . | . . . Combat | -11 -10 -9 -------- Run | Yrd Mat Mat Hostile Shots Fired 9 | . 9 . Missed 1 | . 1 . Hits 8 | . 8 . Projectile 8 | . 8 . Critical Strikes 1 | . 1 . Damage Taken 100 | . 100 . Core 22 | . 22 . Absorbed by Shields . | . . . Core Remaining (%) 95 | 100 91 . Volleys Fired 24 | 2 20 2 Largest 2 | 2 2 1 Hottest 100 | 100 100 68 Shots Fired 46 | 4 40 2 Gun 44 | 4 40 . Cannon 2 | . . 2 Launcher . | . . . Special . | . . . Kinetic . | . . . Thermal 46 | 4 40 2 Explosive . | . . . Electromagnetic . | . . . Robot Hit Streak 4 | 2 3 4 Robot Miss Streak 3 | 1 3 1 Penetration Max . | . . . Secondary Targets . | . . . Shots Hit Robots 24 | 2 21 1 Core Hits 17 | 1 16 . Critical Kills . | . . . Critical Parts Destroyed . | . . . Critical Strikes 7 | . 7 . Burn 7 | . 7 . Melee Attacks . | . . . Impact . | . . . Slashing . | . . . Piercing . | . . . Sneak Attacks . | . . . Combat Hostiles . | . . . Follow-up Attacks . | . . . Damage Inflicted 325 | 25 279 21 Guns 288 | 25 263 . Cannons 21 | . . 21 Explosions . | . . . Melee . | . . . Ramming 16 | . 16 . Kinetic . | . . . Thermal 309 | 25 263 21 Explosive . | . . . Electromagnetic . | . . . Impact . | . . . Slashing . | . . . Piercing . | . . . Highest Corruption . | . . . Average Corruption . | . . . Corruption Purged . | . . . Corruption Blocked . | . . . Overload Shots . | . . . Overflow Damage . | . . . Projectiles . | . . . Explosions . | . . . Melee . | . . . Knockbacks 1 | . 1 . Impact 1 | . 1 . Kinetic . | . . . Secondary . | . . . Self-Inflicted Damage . | . . . Shots . | . . . Rammed . | . . . Targets Rammed 2 | . 2 . Kicked 2 | . 2 . Crushed . | . . . Highest Temperature 172 | 78 172 52 Average Temperature 61 | 40 65 29 Received Heat Transfer 72 | . 72 . Siege Activations . | . . . Martial Activations . | . . . Shielding Activations . | . . . Robots Disrupted . | . . . Combat Hostiles . | . . . Robots Corrupted . | . . . Combat Hostiles . | . . . Parts Fried . | . . . Impact Corruptions . | . . . Robots Melted . | . . . Combat Hostiles . | . . . Parts Melted 5 | . 5 . Heat Transferred 1406 | 74 1295 37 Parts Sabotaged . | . . . Parts Stolen . | . . . Parts Stripped . | . . . Power Chain Reactions . | . . . Alert | -11 -10 -9 ------- Run | Yrd Mat Mat Maximum Alert Level . | . . . Low Security (%) 100 | 100 100 100 Level 1 . | . . . Level 2 . | . . . Level 3 . | . . . Level 4 . | . . . Level 5 . | . . . High Security . | . . . Max Security . | . . . Peak Influence 40 | 5 40 . Initial . | . . . Average 6 | . 7 . Influence Increases 216 | 5 211 . Destroy 0b10 Robot/C 80 | . 80 . Destroy 0b10 Robot/NC 30 | 5 25 . Destroy Leader 26 | . 26 . Successful Hack 35 | . 35 . Select Force Hacks 30 | . 30 . Lose Combat Pursuer 15 | . 15 . Influence Decreases 216 | 5 211 . Time Decay 216 | 5 211 . Squads Dispatched 4 | . 3 1 Investigation 1 | . 1 . Extermination . | . . . Reinforcement 3 | . 2 1 Assault . | . . . Garrison . | . . . Intercept . | . . . Searches Triggered . | . . . Construction Impeded . | . . . Haulers Reinforced . | . . . Active Scanning Responses . | . . . Cargo Convoy Interrupts . | . . . Stealth | -11 -10 -9 --------- Run | Yrd Mat Mat Distress Signals . | . . . Communications Jammed . | . . . Distress Signals . | . . . Times Spotted 19 | . 18 1 Peak Tracking Total 5 | . 5 1 Tactical Retreats 1 | . 1 . Traps | -11 -10 -9 ------- Run | Yrd Mat Mat Traps Triggered . | . . . Indirectly . | . . . Trap Hack Attempts . | . . . Triggered . | . . . Disarmed . | . . . Reprogrammed . | . . . Reused . | . . . Traps Extracted . | . . . Installed . | . . . Triggered . | . . . Machines | -11 -10 -9 ---------- Run | Yrd Mat Mat Machines Disabled . | . . . Max in Single Turn . | . . . Machines Repaired . | . . . Machines Dismantled . | . . . Machines Sabotaged . | . . . Overloaded Fab Kills . | . . . Hacking | -11 -10 -9 --------- Run | Yrd Mat Mat Machines Accessed 8 | . 7 1 Terminals 7 | . 6 1 Fabricators . | . . . Repair Stations . | . . . Recycling Units 1 | . 1 . Scanalyzers . | . . . Garrison Access . | . . . Total Hacks 23 | . 21 2 Successful 17 | . 15 2 Failed 6 | . 6 . Catastrophic . | . . . Database Lockouts . | . . . Manual 23 | . 21 2 Terminals 21 | . 19 2 Fabricators . | . . . Repair Stations . | . . . Recycling Units 2 | . 2 . Scanalyzers . | . . . Garrison Access . | . . . Terminal Hacks 1 | . 1 . Terminal Index 1 | . 1 . Fabricator Hacks . | . . . Repair Station Hacks . | . . . Recycling Unit Hacks . | . . . Scanalyzer . | . . . Garrison Access Hacks . | . . . Unauthorized Hacks 16 | . 14 2 Terminals 14 | . 12 2 Track 2 | . 2 . Assimilate 1 | . 1 . Botnet 4 | . 3 1 Operators 1 | . 1 . Skim 6 | . 5 1 Fabricators . | . . . Repair Stations . | . . . Recycling Units 2 | . 2 . Recyclers 1 | . 1 . Tunnel 1 | . 1 . Scanalyzers . | . . . Garrison Access . | . . . Data Cores Recovered . | . . . Used . | . . . Hacking Detections 7 | . 6 1 Full Trace Events . | . . . Feedback Events . | . . . Feedback Blocked . | . . . Robot Schematics Acquired . | . . . Robots Built . | . . . Authchips . | . . . Time . | . . . Total Robot Build Rating . | . . . Part Schematics Acquired . | . . . Parts Built . | . . . Authchips . | . . . Time . | . . . Total Part Build Rating . | . . . Part Studies Acquired . | . . . Parts Repaired . | . . . Time . | . . . Parts Recycled . | . . . Recycled Matter . | . . . Retrieved Matter . | . . . Retrieved Components . | . . . Parts Scanalyzed . | . . . Part Schematics Acquired . | . . . Parts Damaged . | . . . Bothacking | -11 -10 -9 ------------ Run | Yrd Mat Mat Used RIF Installer . | . . . Robots Hacked . | . . . Non-combat . | . . . Combat . | . . . Robot Hacks Applied . | . . . Relay Couplers Released . | . . . Fabnet Peak Effective % . | . . . Robots Rewired . | . . . Allies Hacked . | . . . Hacks Repelled . | . . . Allies | -11 -10 -9 -------- Run | Yrd Mat Mat Total Allies 1 | . 1 . Largest Group 1 | . 1 1 Highest-Rated Group 10 | . 10 10 Highest-Rated Ally 10 | . 10 10 Total Orders . | . . . Ally Attacks . | . . . Total Damage . | . . . Kills . | . . . Allies Corrupted . | . . . Allies Melted . | . . . Intel | -11 -10 -9 ------- Run | Yrd Mat Mat Active Infowar (turns) 1284 | 16 1163 105 Seismic 1284 | 16 1163 105 Robot Analysis Total . | . . . Derelict Logs Recovered . | . . . Drone Launches . | . . . Drone Recoveries . | . . . Exploration | -11 -10 -9 ------------- Run | Yrd Mat Mat Turns Passed 1344 | 76 1163 105 Spaces Moved 555 | 51 442 62 Core 8 | 8 . . Treads . | . . . Legs 547 | 43 442 62 Wheels . | . . . Hover . | . . . Flight . | . . . Fastest Speed 50 | 50 120 120 Average Speed 120 | 117 120 127 Slowest Speed 190 | 150 120 190 Overloaded Moves . | . . . Propulsion Burnouts . | . . . Robots Hopped . | . . . Potential Cave-ins . | . . . Cave-ins Triggered . | . . . Exploration Rate (%) 31 | 4 81 10 Regions Visited 2 Branch Regions . Pre-discovered Areas 2 | . 2 . Known Exits Taken . | . . . Unknown Exits Taken 2 | 1 1 . Scrap Searched . | . . . Spaces Dug . | . . . Terrain Destroyed . | . . . Melee . | . . . Projectile . | . . . AOE . | . . . Terrain Rammed . | . . . Walls Destroyed . | . . . Machines Disabled . | . . . Actions | -11 -10 -9 --------- Run | Yrd Mat Mat Total 1181 | 60 1034 87 Wait 576 | . 561 15 Move 553 | 50 441 62 Hop . | . . . Pick Up 11 | 1 8 2 Fast Attach 8 | 6 1 1 Attach 2 | 1 . 1 Detach 1 | . . 1 Swap . | . . . Drop 4 | . 1 3 Fire 24 | 2 20 2 Melee . | . . . Ram . | . . . Kick 2 | . 2 . Crush . | . . . Escape Stasis . | . . . Rewire . | . . . Trap . | . . . Miscellaneous . | . . . Route ------- -11/Scrapyard -10/Materials (discovered 5 exits: *Mat x2 / *Min x2 / *Sub) -9/Materials History --------- Turn | Location | Event 17 | -11/Scrapyard | Discovered new exit (range 15) 77 | -11/Scrapyard | Entered Materials 78 | -10/Materials | Met a group of wandering Federalists 143 | -10/Materials | Lost 3 allies 186 | -10/Materials | Lost 3 allies 202 | -10/Materials | Discovered new exit (range 6) 253 | -10/Materials | Discovered new exit (range 7) 266 | -10/Materials | Discovered new exit (range 11) 310 | -10/Materials | Build established: Mutant 358 | -10/Materials | Discovered new exit (range 15) 628 | -10/Materials | Learned 4 Recycling zone layouts 683 | -10/Materials | Learned 4 Subcaves zone layouts 729 | -10/Materials | Learned Storage trap positions 766 | -10/Materials | Identified exit to Mines 766 | -10/Materials | Identified exit to Subcaves 794 | -10/Materials | Learned Storage security intel 839 | -10/Materials | Learned location of 1 exit from Storage 1180 | -10/Materials | Discovered new exit (range 10) 1240 | -10/Materials | Entered another Materials area 1240 | -9/Materials | Accompanied by 1 ally 1240 | -9/Materials | Evolved 2 slots: Utility x2 1345 | -9/Materials | Self-destructed Last Messages --------------- Testing... Terminal linked with 0 systems. Awaiting botnet instructions. >>Trojan(Skim) Trojan loaded successfully. Testing... Terminal linked with 0 systems. Please expand to 4 more systems! 01258_ Dropped Med. Laser. 01260_ Acquired Particle Cannon. 01263_ Dropped Lrg. Storage Unit. 01263_ Acquired Med. Laser. 01270_ Dropped Sml. Storage Unit. 01273_ Acquired Lrg. Storage Unit. 01308_ K-01 Serf collects debris. 01323_ O-16 Technician: "IFF HANDSHAKE FAILED. SECURING TERMINAL." 01325_ K-01 Serf collects debris. 01334_ ALERT: Hostiles spotted, dispatching reinforcements to Terminal M007. Map ----- +----------------------------------------------------+ | | | | | ?????????????????############ | | ?????????????????# | | ?????????????????# | | ?????????????????# ! | | ?????????????????# | | ?????????????????# !! | | ?????????????????# !! | | ?????????????????# | | ?????????????????######+##### | | ?????????????######## ### | | ?????????????# | | ?????????????# T | | ?????????????# | | ???############# # ### | | ???# #?# ## ##?? | | ???# #?# ## #??? | | ???# #?# ## #??? | | ???# #?# ## #??? | | ???# #?# ## #??? | | ???# #?# ## #??? | | ???# #?# ## #??? | | ???# #?# ## #??? | | ??####+###/##### # #??? | | ?#[[@ o # #??? | | ?#[[ t # #??? | | ?#[[ """ """ # ??? | | ?#[[ """ """ # ???? | | ?#== """ """ ##??????? | | ?#== #???????? | | ?##### #???????? | | ?????# +???????? | | ?????# ##### #???????? | | ?????# #???? #???????? | | ?????#+###+##???? #???????? | | ????????????????? #???????? | | ????????????????? #???????? | | ????????????????? #???????? | | ????????????????? #???????? | | ????????????????? #???????? | | ?????????????????? ?????????? | | ????????????????????????????? | | ????????????????????????????? | | ????????????????????????????? | | ????????????????????????????? | | ????????????????????????????? | | ????????????????????????????? | | ????????????????????????????? | | ????????????????????????????? | +----------------------------------------------------+ Best States ------------- Heat Dissipation 28 Energy Generation 14 Energy Capacity 250 Matter Stores 300 Matter Capacity 300 Sight Range 16 Terrain Scan Density 10 Evasion (%) 55 Item Schematics ----------------- None Robot Schematics ------------------ None Fabricated ------------ Nothing Repaired ---------- Nothing Studied --------- None Alien Tech Used ----------------- None Achievements -------------- None Challenges ------------ None Game ------ Seed SmartOvertunedPit Manual? 0 Play Time 00:10:28 Cumulative 38.3 hours Start 2026.02.14 @ 12:17:42 End 2026.02.14 @ 12:36:08 Sessions 1 Manual Loads 0 Difficulty Rogue Special Mode None Game No. 84 Rogue 84 Adventurer 0 Explorer 0 Win Type - Total 2 Types 2/0/0/0/0/0/0/0/0/0 Lore% 40 Gallery% 31 Achievement% 31 Wizard Run 0 Options --------- Layout 1 ASCII 0 Keyboard 1 Movement Arrows Keybinds 0 Fullscreen 1 Font 16/SmallcapsGlow Map View 50x54 Zoom Use 20% Tactical HUD 1 Map Filters NONE Filters NONE Steam 1 RUN: 5159de59-2f5c-4ce2-9df4-a593951b9eb4